Cogmind - Beta 15 *** ADVENTURER MODE // 2025.05.07 @ 08:15:51 Player: Rotpup_ Result: Destroyed by B-36 Bruiser with Hammer Performance ------------- Evolutions (1) 500 Regions Visited (6) 1200 Robots Destroyed (40) 200 Value Destroyed (1152) 1152 Prototype IDs (24) 480 Alien Tech Used (0) 0 Bonus (300) 300 TOTAL SCORE: 3832 Bonus ------- Aligned with FarCom 300 Cogmind --------- Core Integrity 0/400 Matter 213/300 Energy 95/100 System Corruption 0% Temperature Cool (0) Movement Core (50) Location -8/Mines Parts ------- > --- POWER (1) -------- (None) > --- PROPULSION (2) --- (None) > --- UTILITY (4) ------ (None) > --- WEAPON (2) ------- Longsword +1 > --- INVENTORY (5) ---- Light Nuclear Core Aluminum Leg Aluminum Leg Small Storage Unit ECM Suite Peak State ------------ > --- POWER ------------ Light Nuclear Core > --- PROPULSION ------- Light Treads Light Treads > --- UTILITY ---------- Large Storage Unit Sensor Array Experimental Sensor Array Signal Interpreter > --- WEAPON ----------- Light Assault Rifle Light Assault Rifle > --- INVENTORY -------- Ion Engine Improved Heat Sink Improved Heat Sink Large Storage Unit ECM Suite Utility Shielding EM Pulse Gun Beam Cannon Rocket Launcher Datajack [Rating: 20] Favorites ----------- Power Ion Engine Engine Ion Engine Power Core Light Nuclear Core Propulsion Light Treads Treads Light Treads Utility Large Storage Unit Device Sensor Array Storage Large Storage Unit Processor Signal Interpreter Protection Utility Shielding Weapon Light Assault Rifle Energy Gun EM Pulse Gun Energy Cannon Beam Cannon Ballistic Gun Light Assault Rifle Launcher Rocket Launcher Slashing Weapon Longsword +1 Build | -11 -10 -10 -9 -9 -9 -8 ------- Run | Yrd Mat Min Mat Min Exi Min Slots Evolved 2 | . . . 2 . . . Power . | . . . . . . . Propulsion . | . . . . . . . Utility 2 | . . . 2 . . . Weapon . | . . . . . . . Parts Attached 31 | 7 8 2 8 4 2 . Power 7 | 1 2 2 . 2 . . Engine 5 | 1 1 1 . 2 . . Core 2 | . 1 1 . . . . Reactor . | . . . . . . . Propulsion 5 | 2 1 . 2 . . . Treads 5 | 2 1 . 2 . . . Leg . | . . . . . . . Wheel . | . . . . . . . Hover . | . . . . . . . Flight . | . . . . . . . Utility 11 | 2 2 . 5 1 1 . Device 5 | 1 1 . 3 . . . Storage 4 | 1 1 . . 1 1 . Processor 1 | . . . 1 . . . Hackware . | . . . . . . . Protection 1 | . . . 1 . . . Artifact . | . . . . . . . Weapon 8 | 2 3 . 1 1 1 . Energy Gun 3 | 2 1 . . . . . Energy Cannon 1 | . . . 1 . . . Ballistic Gun 2 | . 2 . . . . . Ballistic Cannon . | . . . . . . . Launcher 1 | . . . . 1 . . Special Weapon . | . . . . . . . Impact Weapon . | . . . . . . . Slashing Weapon 1 | . . . . . 1 . Piercing Weapon . | . . . . . . . Special Melee Weapon . | . . . . . . . Unidentified Prototypes 1 | . . . 1 . . . Parts Lost 10 | . 3 . 2 5 . . Power 3 | . 1 . . 2 . . Propulsion 2 | . 1 . . 1 . . Utility 1 | . 1 . . . . . Weapon 4 | . . . 2 2 . . Highest Loss Streak 3 | . 2 . 2 3 . . To Critical Strikes . | . . . . . . . Average Backups 7 | 2 7 10 9 8 1 2 Power 1 | . 1 1 1 1 . . Propulsion . | . . . 1 2 . . Utility 3 | . 3 5 4 3 1 2 Weapon 1 | . 2 2 1 . . . Tool/Special . | . . . . . . . Unused Backups 3 | . . . . 3 . . Power . | . . . . . . . Propulsion 1 | . . . . 1 . . Utility 2 | . . . . 2 . . Weapon . | . . . . . . . Tool/Special . | . . . . . . . Average Slot Usage (%) 85 | . 96 100 95 66 10 11 Engine 6 | . 6 13 . . . . Core 4 | . 5 . 11 6 . . Treads 22 | . 27 28 22 15 . . Device 12 | . 13 14 17 15 . . Storage 11 | . 14 14 11 8 4 . Processor 2 | . . . 11 6 . . Energy Gun 2 | . 2 . 4 6 . . Energy Cannon 1 | . . . 7 6 . . Ballistic Gun 18 | . 25 28 6 . . . Peak Build Rating 20 | 7 10 11 20 15 9 8 Average Rating 8 | 4 8 9 12 9 5 8 On Entrance 7 | . 7 8 11 14 2 9 Naked Turns 138 | . . . . 75 63 . Heaviest Build 34 | 14 28 28 32 34 8 3 Greatest Support 40 | 40 40 40 40 40 3 3 Greatest Overweight (x) 7 | . 1 . . 7 2 . Average Overweight (x) . | . . . . . . . Largest Inventory Capacity 15 | 8 15 15 15 15 15 5 Average Capacity 12 | 5 11 15 15 12 6 5 Most Carried 12 | 5 9 12 11 12 3 5 Average Carried 7 | 2 7 10 9 8 1 3 Final Capacity 15 | 8 15 15 15 15 8 5 Final Carried 12 | 2 9 12 11 . 1 5 Class Distribution -------------------- 74% | Mutant 25% | Scavenger-Mutant Dominant Class ---------------- Mutant | -10/Materials Mutant | -10/Mines Mutant | -9/Materials Scavenger-Mutant | -9/Mines Mutant | -9/Exiles Mutant | -8/Mines Resources | -11 -10 -10 -9 -9 -9 -8 ----------- Run | Yrd Mat Min Mat Min Exi Min Matter Collected 652 | 270 213 37 112 20 . . Remotely 198 | 65 133 . . . . . Salvage Created 1626 | 87 781 85 409 212 . 52 Parts 83 | 2 39 6 22 9 . 5 Haulers Intercepted 1 | . 1 . . . . . Recyclers Shooed 1 | . 1 . . . . . Parts Field Recycled . | . . . . . . . Retrieved Matter . | . . . . . . . Parts Self-Destructed . | . . . . . . . Prevented . | . . . . . . . Kills | -11 -10 -10 -9 -9 -9 -8 ------- Run | Yrd Mat Min Mat Min Exi Min Combat Hostiles Destroyed 31 | . 19 2 6 3 . 1 Melee 1 | . . . . . . 1 Guns 24 | . 19 2 3 . . . Cannons 6 | . . . 3 3 . . Classes Destroyed 9 | 1 6 . 2 . . . Worker 1 | . 1 . . . . . Builder 1 | . 1 . . . . . Hauler 1 | . 1 . . . . . Recycler 3 | 1 . . 1 1 . . Watcher 3 | . 2 . 1 . . . Swarmer 4 | . 4 . . . . . Grunt 23 | . 15 2 2 3 . 1 Brawler 1 | . . . 1 . . . Sentry 3 | . . . 3 . . . Best Kill Streak 5 | 1 5 2 3 3 . 1 Combat Bots Only 5 | . 5 2 3 3 . 1 Max Kills in Single Turn 2 | 1 2 1 1 1 . 1 Gunslinging 1 | . 1 . . . . . Exploded . | . . . . . . . Melee 1 | . . . . . . 1 Uniques/NPCs Destroyed . | . . . . . . . Combat | -11 -10 -10 -9 -9 -9 -8 -------- Run | Yrd Mat Min Mat Min Exi Min Hostile Shots Fired 188 | . 111 10 29 27 . 11 Missed 42 | . 27 2 6 4 . 3 Hits 146 | . 84 8 23 23 . 8 Melee 8 | . . . 4 . . 4 Projectile 138 | . 84 8 19 23 . 4 AOE 20 | . . . . 20 . . Critical Strikes 7 | . 2 . 3 1 . 1 Damage Taken 1867 | . 670 78 268 711 . 140 Core 559 | . 121 29 49 297 . 63 Absorbed by Shields . | . . . . . . . Ignored by Resistances 548 | . 208 24 80 196 . 40 Core Remaining (%) 70 | 100 . 40 . . . . Volleys Fired 123 | 1 80 8 27 7 . . Largest 2 | 2 2 2 2 2 . . Hottest 100 | 80 80 40 100 100 . . Shots Fired 233 | 2 160 16 41 14 . . Gun 206 | 2 160 16 23 5 . . Cannon 25 | . . . 18 7 . . Launcher 2 | . . . . 2 . . Special . | . . . . . . . Kinetic 172 | . 144 16 12 . . . Thermal 40 | 1 14 . 18 7 . . Explosive 2 | . . . . 2 . . Electromagnetic 19 | 1 2 . 11 5 . . Robot Hit Streak 38 | 1 23 25 30 38 . . Robot Miss Streak 4 | . 4 2 1 1 . . Penetration Max . | . . . . . . . Secondary Targets 5 | . 5 . . . . . Max Gunslinging Chain 1 | . 1 . . . . . Shots Hit Robots 199 | 1 130 13 36 10 . 9 Core Hits 88 | 1 54 6 14 12 . 1 Critical Kills . | . . . . . . . Critical Parts Destroyed . | . . . . . . . Critical Strikes 2 | . . . . . . 2 Sever 2 | . . . . . . 2 Melee Attacks 9 | . . . . . . 9 Impact . | . . . . . . . Slashing 9 | . . . . . . 9 Piercing . | . . . . . . . Sneak Attacks . | . . . . . . . Combat Hostiles . | . . . . . . . Follow-up Attacks . | . . . . . . . Damage Inflicted 2488 | 26 1317 101 493 244 . 307 Guns 1484 | 26 1061 101 224 72 . . Cannons 374 | . . . 269 105 . . Explosions 323 | . 256 . . 67 . . Melee 307 | . . . . . . 307 Ramming . | . . . . . . . Kinetic 1160 | . 975 101 84 . . . Thermal 727 | 11 342 . 269 105 . . Explosive 67 | . . . . 67 . . Electromagnetic 227 | 15 . . 140 72 . . Impact . | . . . . . . . Slashing 307 | . . . . . . 307 Piercing . | . . . . . . . Highest Corruption . | . . . . . . . Average Corruption . | . . . . . . . Corruption Purged . | . . . . . . . Corruption Blocked . | . . . . . . . Overload Shots . | . . . . . . . Overflow Damage 5 | . 3 . . 2 . . Projectiles 2 | . . . . 2 . . Explosions 3 | . 3 . . . . . Melee . | . . . . . . . Knockbacks . | . . . . . . . Impact . | . . . . . . . Kinetic . | . . . . . . . Secondary . | . . . . . . . Self-Inflicted Damage 14 | . . . . 14 . . Shots 1 | . . . . 1 . . Rammed . | . . . . . . . Targets Rammed . | . . . . . . . Kicked . | . . . . . . . Crushed . | . . . . . . . Highest Temperature 255 | 18 108 18 255 47 . . Average Temperature 23 | 12 16 9 48 27 . . Received Heat Transfer 609 | . 336 60 114 63 . 36 Siege Activations . | . . . . . . . Martial Activations . | . . . . . . . Shielding Activations . | . . . . . . . Robots Disrupted . | . . . . . . . Combat Hostiles . | . . . . . . . Robots Corrupted . | . . . . . . . Combat Hostiles . | . . . . . . . Parts Fried . | . . . . . . . Impact Corruptions . | . . . . . . . Robots Melted . | . . . . . . . Combat Hostiles . | . . . . . . . Parts Melted 2 | . . . 1 1 . . Heat Transferred 1152 | 25 350 . 555 222 . . Parts Sabotaged . | . . . . . . . Parts Stolen . | . . . . . . . Parts Stripped . | . . . . . . . Power Chain Reactions . | . . . . . . . Alert | -11 -10 -10 -9 -9 -9 -8 ------- Run | Yrd Mat Min Mat Min Exi Min Maximum Alert Level . | . . . . . . . Low Security (%) 100 | 100 100 100 100 100 . 100 Level 1 . | . . . . . . . Level 2 . | . . . . . . . Level 3 . | . . . . . . . Level 4 . | . . . . . . . Level 5 . | . . . . . . . High Security . | . . . . . . . Max Security . | . . . . . . . Peak Influence 173 | 5 173 50 83 93 . 20 Initial 23 | . . . 9 23 . . Average 37 | . 57 3 37 35 . 8 Influence Increases 972 | 5 602 50 173 122 . 20 Destroy 0b10 Robot/C 620 | . 380 40 120 60 . 20 Destroy 0b10 Robot/NC 45 | 5 25 . 10 5 . . Destroy Leader 138 | . 76 10 42 10 . . Successful Hack 21 | . 21 . . . . . Disable Machine 18 | . 18 . . . . . Destroy Structure 55 | . 37 . 1 17 . . Lose Combat Pursuer 75 | . 45 . . 30 . . Influence Decreases 962 | 5 602 20 130 195 . 10 Entered New Map 71 | . . . 21 50 . . Time Decay 719 | 5 460 20 99 125 . 10 Lost Part 60 | . 30 . 10 20 . . Purge Threat 112 | . 112 . . . . . Squads Dispatched 4 | . 4 . . . . . Investigation 4 | . 4 . . . . . Extermination . | . . . . . . . Reinforcement . | . . . . . . . Assault . | . . . . . . . Garrison . | . . . . . . . Intercept . | . . . . . . . Searches Triggered . | . . . . . . . Construction Impeded . | . . . . . . . Haulers Reinforced . | . . . . . . . Active Scanning Responses . | . . . . . . . Cargo Convoy Interrupts . | . . . . . . . Stealth | -11 -10 -10 -9 -9 -9 -8 --------- Run | Yrd Mat Min Mat Min Exi Min Distress Signals 5 | . 5 . . . . . Communications Jammed . | . . . . . . . Distress Signals . | . . . . . . . Times Spotted 50 | . 32 2 7 6 . 3 Peak Tracking Total 6 | . 6 2 3 2 . 3 Tactical Retreats 3 | . 2 . . 1 . . Traps | -11 -10 -10 -9 -9 -9 -8 ------- Run | Yrd Mat Min Mat Min Exi Min Traps Triggered 2 | . 2 . . . . . Indirectly . | . . . . . . . Trap Hack Attempts . | . . . . . . . Triggered . | . . . . . . . Disarmed . | . . . . . . . Reprogrammed . | . . . . . . . Reused . | . . . . . . . Traps Extracted . | . . . . . . . Installed . | . . . . . . . Triggered . | . . . . . . . Objects Rigged 2 | . 2 . . . . . Exploded 1 | . 1 . . . . . Machines | -11 -10 -10 -9 -9 -9 -8 ---------- Run | Yrd Mat Min Mat Min Exi Min Machines Disabled 2 | . 2 . . . . . Max in Single Turn 2 | . 2 . . . . . Machines Repaired . | . . . . . . . Machines Dismantled . | . . . . . . . Machines Sabotaged . | . . . . . . . Overloaded Fab Kills . | . . . . . . . Hacking | -11 -10 -10 -9 -9 -9 -8 --------- Run | Yrd Mat Min Mat Min Exi Min Machines Accessed 10 | . 8 1 . . 1 . Terminals 8 | . 7 1 . . . . Fabricators . | . . . . . . . Repair Stations . | . . . . . . . Recycling Units 1 | . 1 . . . . . Scanalyzers . | . . . . . . . Garrison Access . | . . . . . . . Total Hacks 34 | . 30 3 . . 1 . Successful 21 | . 19 1 . . 1 . Failed 13 | . 11 2 . . . . Catastrophic 1 | . . 1 . . . . Database Lockouts . | . . . . . . . Manual 23 | . 19 3 . . 1 . Terminals 31 | . 28 3 . . . . Fabricators . | . . . . . . . Repair Stations . | . . . . . . . Recycling Units 2 | . 2 . . . . . Scanalyzers . | . . . . . . . Garrison Access . | . . . . . . . Terminal Hacks 10 | . 8 1 . . 1 . Robot Analysis 2 | . 2 . . . . . Branch Access Points 2 | . 1 1 . . . . Emergency Access Points 2 | . 2 . . . . . Alert Level 2 | . 2 . . . . . Unreport Threat 1 | . 1 . . . . . Proto ID Catalog 1 | . . . . . 1 . Fabricator Hacks . | . . . . . . . Repair Station Hacks . | . . . . . . . Recycling Unit Hacks . | . . . . . . . Scanalyzer . | . . . . . . . Garrison Access Hacks . | . . . . . . . Unauthorized Hacks 11 | . 11 . . . . . Terminals 9 | . 9 . . . . . Botnet 7 | . 7 . . . . . Detonate 1 | . 1 . . . . . Operators 1 | . 1 . . . . . Fabricators . | . . . . . . . Repair Stations . | . . . . . . . Recycling Units 2 | . 2 . . . . . Reject 1 | . 1 . . . . . Mask 1 | . 1 . . . . . Scanalyzers . | . . . . . . . Garrison Access . | . . . . . . . Data Cores Recovered . | . . . . . . . Used . | . . . . . . . Hacking Detections 7 | . 6 1 . . . . Full Trace Events 3 | . 3 . . . . . Feedback Events . | . . . . . . . Feedback Blocked . | . . . . . . . Robot Schematics Acquired . | . . . . . . . Robots Built . | . . . . . . . Authchips . | . . . . . . . Time . | . . . . . . . Total Robot Build Rating . | . . . . . . . Part Schematics Acquired . | . . . . . . . Parts Built . | . . . . . . . Authchips . | . . . . . . . Time . | . . . . . . . Total Part Build Rating . | . . . . . . . Parts Repaired . | . . . . . . . Time . | . . . . . . . Parts Recycled . | . . . . . . . Recycled Matter . | . . . . . . . Retrieved Matter . | . . . . . . . Retrieved Components . | . . . . . . . Parts Scanalyzed . | . . . . . . . Part Schematics Acquired . | . . . . . . . Parts Damaged . | . . . . . . . Bothacking | -11 -10 -10 -9 -9 -9 -8 ------------ Run | Yrd Mat Min Mat Min Exi Min Used RIF Installer . | . . . . . . . Robots Hacked . | . . . . . . . Non-combat . | . . . . . . . Combat . | . . . . . . . Robot Hacks Applied . | . . . . . . . Relay Couplers Released . | . . . . . . . Fabnet Peak Effective % . | . . . . . . . Robots Rewired . | . . . . . . . Allies Hacked . | . . . . . . . Hacks Repelled . | . . . . . . . Allies | -11 -10 -10 -9 -9 -9 -8 -------- Run | Yrd Mat Min Mat Min Exi Min Total Allies . | . . . . . . . Largest Group . | . . . . . . . Highest-Rated Group . | . . . . . . . Highest-Rated Ally . | . . . . . . . Total Orders . | . . . . . . . Ally Attacks . | . . . . . . . Total Damage . | . . . . . . . Kills . | . . . . . . . Allies Corrupted . | . . . . . . . Allies Melted . | . . . . . . . Intel | -11 -10 -10 -9 -9 -9 -8 ------- Run | Yrd Mat Min Mat Min Exi Min Active Infowar (turns) 1372 | . 433 495 238 206 . . Sensors 1344 | . 433 495 238 178 . . ECM 29 | . . . 1 28 . . Robot Analysis Total 2 | . 2 . . . . . Derelict Logs Recovered 4 | . . 3 . 1 . . Drone Launches . | . . . . . . . Drone Recoveries . | . . . . . . . Exploration | -11 -10 -10 -9 -9 -9 -8 ------------- Run | Yrd Mat Min Mat Min Exi Min Turns Passed 2382 | 83 1079 495 238 284 158 45 Spaces Moved 1358 | 52 509 287 88 157 237 28 Core 336 | 16 . . . 55 237 28 Treads 1022 | 36 509 287 88 102 . . Legs . | . . . . . . . Wheels . | . . . . . . . Hover . | . . . . . . . Flight . | . . . . . . . Fastest Speed 50 | 50 160 160 160 50 50 50 Average Speed 137 | 126 162 160 160 128 64 50 Slowest Speed 400 | 160 240 160 160 400 150 50 Overloaded Moves . | . . . . . . . Propulsion Burnouts . | . . . . . . . Robots Hopped . | . . . . . . . Potential Cave-ins 3 | . . . . 3 . . Cave-ins Triggered . | . . . . . . . Exploration Rate (%) 38 | 4 75 74 13 40 60 6 Regions Visited 6 Branch Regions 4 Pre-discovered Areas 2 | . . 2 . . . . Known Exits Taken 3 | . 1 . 1 1 . . Unknown Exits Taken 3 | 1 . 1 . . 1 . Scrap Searched 1 | . . 1 . . . . Spaces Dug . | . . . . . . . Terrain Destroyed 67 | . 49 . . 18 . . Melee . | . . . . . . . Projectile . | . . . . . . . AOE 67 | . 49 . . 18 . . Terrain Rammed . | . . . . . . . Walls Destroyed . | . . . . . . . Machines Disabled . | . . . . . . . Actions | -11 -10 -10 -9 -9 -9 -8 --------- Run | Yrd Mat Min Mat Min Exi Min Total 1674 | 68 630 310 145 227 243 51 Wait 98 | . 15 7 14 52 . 10 Move 1352 | 51 508 286 87 156 236 28 Hop . | . . . . . . . Pick Up 40 | 9 14 5 5 2 2 3 Fast Attach . | . . . . . . . Attach 22 | 7 3 . 4 6 2 . Detach 3 | . . . . . 2 1 Swap 17 | . 6 2 6 3 . . Drop 10 | . 4 2 2 1 1 . Fire 123 | 1 80 8 27 7 . . Melee 9 | . . . . . . 9 Ram . | . . . . . . . Kick . | . . . . . . . Crush . | . . . . . . . Escape Stasis . | . . . . . . . Rewire . | . . . . . . . Trap . | . . . . . . . Miscellaneous . | . . . . . . . Route ------- -11/Scrapyard -10/Materials (discovered 3 exits: [*Mat x2] / *Min) -10/Mines (discovered 2 exits: [*Mat] / Sub) -9/Materials -9/Mines -9/Exiles -8/Mines History --------- Turn | Location | Event 12 | -11/Scrapyard | Discovered new exit (range 16) 84 | -11/Scrapyard | Entered Materials 551 | -10/Materials | Discovered new exit (range 10) 590 | -10/Materials | Build established: Scavenger-Mutant 684 | -10/Materials | Derelicts attacked the area 876 | -10/Materials | Discovered new exit (range 9) 922 | -10/Materials | Identified exit to Mines 974 | -10/Materials | Build established: Mutant 1163 | -10/Materials | Entered Mines 1168 | -10/Mines | Met a Derelict bent on vengeance 1175 | -10/Mines | Identified exit to Subcaves 1187 | -10/Mines | Found a damaged Exp. Sensor Array with a note attached 1191 | -10/Mines | Found Prototype Device 1267 | -10/Mines | Received a Rocket Launcher from a helpful Derelict 1548 | -10/Mines | Learned location of Recycling (-8) 1607 | -10/Mines | Core integrity fell below 50% 1623 | -10/Mines | Discovered new exit (range 6) 1658 | -10/Mines | Entered Materials 1658 | -9/Materials | Evolved 2 slots: Utility x2 1662 | -9/Materials | Identified Exp. Sensor Array 1828 | -9/Materials | Discovered new exit (range 8) 1895 | -9/Materials | Identified exit to Mines 1896 | -9/Materials | Entered Mines 1963 | -9/Mines | Assembled infested the area 1968 | -9/Mines | Assisted by a Guerilla fighting off Assembled 2035 | -9/Mines | Identified exit to Exiles 2074 | -9/Mines | Released all parts (8) 2076 | -9/Mines | Core integrity fell below 50% 2099 | -9/Mines | Deemed a non-threat by the Exiles lab entrance 2179 | -9/Mines | Core integrity fell below 20% 2180 | -9/Mines | Entered Exiles 2194 | -9/Exiles | Met 8R-AWN 2202 | -9/Exiles | Met EX-HEX 2210 | -9/Exiles | Lost 3 parts (1p1n1w) 2217 | -9/Exiles | Met EX-BIN 2226 | -9/Exiles | Aligned with FarCom system 2226 | -9/Exiles | Given EX-Vault access code 2238 | -9/Exiles | Opened EX-Vault 2241 | -9/Exiles | Found Longsword +1 2252 | -9/Exiles | Warned to stay clear of 0b10 Research branches 2267 | -9/Exiles | Met EX-DEC 2326 | -9/Exiles | Discovered new exit (range 10) 2338 | -9/Exiles | Left Exiles lab with Longsword +1 2338 | -9/Exiles | Entered Mines 2383 | -8/Mines | Destroyed by B-36 Bruiser with Hammer Last Messages --------------- move in here and I'll invert your atomic chain! 02269_ EX-DEC: "Oops, I hope HEX didn't hear that..." 02285_ Acquired Sml. Storage Unit. 02287_ Dropped Lrg. Storage Unit. 02326_ EXIT=FOUND LOCATION=UNKNOWN GOAL=ESCAPE 02338_ Receiving FarCom transmissions... 02349_ T-07 Excavator is excavating. 02361_ G-47 Trooper destroyed. 02362_ T-07 Excavator is excavating. 02364_ Acquired Aluminum Leg. 02367_ T-07 Excavator is excavating. 02367_ Acquired Lgt. Nuclear Core. 02371_ T-07 Excavator is excavating. 02376_ B-36 Bruiser Lgt. Armor Plating severed. 02380_ T-07 Excavator is excavating. 02380_ B-36 Bruiser Lgt. Treads severed. Map ----- +----------------------------------------------------+ | | | | | | | | | | | | | | | | | | | | | | | | | | | | | | | | | | | | | | | | | ????????????????????????????????????????? | | ????????????????????????????????????????? | | ????????????????????????????????????????? | | ????????????????????????????????????????? | | ???????????????????????####### t#???????? | | ???????????????????????#!@ #???????? | | ????########???????????#b#### #???????? | | ??? ######????#g#??????????????? | | ??? ######[#??????????????? | | ??????????# #??????????????? | | ??????????####### ########??????????????? | | ????????????????# #?????????????????????? | | ????????????##### ####??????????????????? | | ????????????# #??????????????????? | | ????????????# #??????????????????? | | ????????????# """ #??????????????????? | | ????????????# """ #??????????????????? | | ????????????# """ #??????????????????? | | ????????????# #??????????????????? | | ????????????##########??????????????????? | | ????????????????????????????????????????? | | ????????????????????????????????????????? | | ????????????????????????????????????????? | | ????????????????????????????????????????? | | ????????????????????????????????????????? | | ????????????????????????????????????????? | | ????????????????????????????????????????? | | ????????????????????????????????????????? | | ????????????????????????????????????????? | | ????????????????????????????????????????? | +----------------------------------------------------+ Best States ------------- Heat Dissipation 42 Energy Generation 14 Energy Capacity 250 Matter Stores 300 Matter Capacity 300 Sight Range 16 Robot Scan Range 14 Terrain Scan Density 10 ECM Strength 1 Resistance: KI 20 Resistance: TH 20 Resistance: EX 20 Resistance: EM 20 Resistance: I 20 Resistance: S 20 Resistance: P 20 Utility Shielding 33 Evasion (%) 50 Recoil Reduction 2 Offensive Hacking 10 Item Schematics ----------------- None Robot Schematics ------------------ None Fabricated ------------ Nothing Repaired ---------- Nothing Alien Tech Used ----------------- None Achievements -------------- None Challenges ------------ None Game ------ Seed FlyingEtherialMesh Manual? 0 Play Time 00:22:30 Cumulative 19.6 hours Start 2025.05.07 @ 07:52:46 End 2025.05.07 @ 08:15:51 Sessions 1 Manual Loads 0 Difficulty Adventurer Special Mode None Game No. 40 Rogue 35 Adventurer 4 Explorer 1 Win Type - Total 0 Types 0/0/0/0/0/0/0/0/0/0 Lore% 10 Gallery% 24 Achievement% 23 Wizard Run 0 Options --------- Layout 1 ASCII 0 Keyboard 0 Movement Mouse Keybinds 0 Fullscreen 2 Font 24/Smallcaps Map View 50x35 Zoom Use 0% Tactical HUD 1 Map Filters NONE Filters NONE Steam 1 RUN: be6452a0-a6b5-436b-af21-06d512600927